Cogmind - Beta 11.1 @@@ ROGUE MODE // 2022.06.20 @ 00:06:28 Player: aperiodic Result: Destroyed by G-34 Mercenary with Small Laser Performance ------------- Evolutions (0) 0 Regions Visited (2) 400 Robots Destroyed (40) 200 Value Destroyed (584) 584 Prototype IDs (3) 60 Alien Tech Used (0) 0 Bonus (15) 15 TOTAL SCORE: 1259 Bonus ------- High Alert Combat Kills 15 Cogmind --------- Core Integrity 0/250 Matter 222/300 Energy 55/100 System Corruption 0% Temperature Cool (6) Movement Rolling (90) Location -10/Mines Parts ------- > --- POWER (1) -------- (None) > --- PROPULSION (2) --- Wheel Compact Wheel > --- UTILITY (2) ------ Large Storage Unit > --- WEAPON (2) ------- Light Cannon Light Cannon > --- INVENTORY (15) --- Light Ion Engine Light Treads Light Treads Wheel Wheel Wheel Medium Storage Unit Huge Storage Unit Medium Laser Assault Rifle Light Assault Rifle Light Cannon Grenade Launcher Mining Laser Ripper Peak State ------------ > --- POWER ------------ Light Nuclear Core > --- PROPULSION ------- Wheel Compact Wheel > --- UTILITY ---------- Large Storage Unit Seismic Detector > --- WEAPON ----------- Medium Laser Assault Rifle > --- INVENTORY -------- Light Ion Engine Light Treads Light Treads Wheel Medium Storage Unit Huge Storage Unit Light Assault Rifle Light Cannon Grenade Launcher Mining Laser [Rating: 10] Favorites ----------- Power Light Nuclear Core Engine Ion Engine Power Core Light Nuclear Core Propulsion Wheel Wheel Wheel Utility Seismic Detector Device Seismic Detector Storage Large Storage Unit Weapon Medium Laser Energy Gun Medium Laser Ballistic Gun Assault Rifle Ballistic Cannon Light Cannon Launcher Grenade Launcher Special Weapon Mining Laser Build | -11 -10 -10 ------- Run | Scr Mat Min Slots Evolved . | . . . Power . | . . . Propulsion . | . . . Utility . | . . . Weapon . | . . . Parts Attached 35 | 10 16 9 Power 3 | 2 1 . Engine 2 | 2 . . Core 1 | . 1 . Reactor . | . . . Propulsion 6 | 3 . 3 Treads . | . . . Leg . | . . . Wheel 6 | 3 . 3 Hover . | . . . Flight . | . . . Utility 4 | 2 2 . Device 1 | 1 . . Storage 3 | 1 2 . Processor . | . . . Hackware . | . . . Protection . | . . . Artifact . | . . . Weapon 22 | 3 13 6 Energy Gun 2 | 1 1 . Energy Cannon . | . . . Ballistic Gun 6 | 2 4 . Ballistic Cannon 6 | . 3 3 Launcher 2 | . . 2 Special Weapon 6 | . 5 1 Impact Weapon . | . . . Slashing Weapon . | . . . Piercing Weapon . | . . . Special Melee Weapon . | . . . Unidentified Prototypes . | . . . Parts Lost 3 | . . 3 Power 1 | . . 1 Propulsion 1 | . . 1 Utility 1 | . . 1 Weapon . | . . . Highest Loss Streak 2 | . . 2 To Critical Strikes 1 | . . 1 Average Slot Usage (%) 97 | . 100 90 Engine 4 | . 6 . Core 8 | . 7 10 Wheel 27 | . 28 25 Device 13 | . 14 11 Storage 14 | . 14 14 Energy Gun 9 | . 12 . Ballistic Gun 9 | . 12 . Ballistic Cannon 7 | . 1 26 Special Weapon 1 | . 1 . Naked Turns . | . . . Heaviest Build 32 | 15 32 32 Greatest Support 26 | 26 26 26 Greatest Overweight (x) 1 | . 1 1 Average Overweight (x) . | . . . Largest Inventory Capacity 15 | 8 15 15 Average Capacity 12 | 6 11 15 Most Carried 15 | 6 12 15 Average Carried 8 | 2 7 13 Final Capacity 15 | 8 15 15 Final Carried 15 | 6 12 15 Class Distribution -------------------- 82% | Mutant 17% | Scavenger-Mutant Dominant Class ---------------- Mutant | -10/Materials Scavenger-Mutant | -10/Mines Resources | -11 -10 -10 ----------- Run | Scr Mat Min Matter Collected 987 | 315 329 343 Remotely . | . . . Salvage Created 1116 | 143 480 493 Parts 84 | 16 35 33 Haulers Intercepted 2 | . 2 . Recyclers Shooed 3 | . . 3 Parts Field Recycled . | . . . Retrieved Matter . | . . . Parts Self-Destructed . | . . . Prevented . | . . . Kills | -11 -10 -10 ------- Run | Scr Mat Min Combat Hostiles Destroyed 17 | . 8 9 Guns 6 | . 6 . Cannons 4 | . 2 2 AOE 7 | . . 7 Classes Destroyed 8 | 2 6 . Worker 5 | . 2 3 Builder 3 | . 1 2 Tunneler 4 | 4 . . Hauler 2 | . 2 . Recycler 6 | 1 . 5 Watcher 3 | . 3 . Swarmer 8 | . 2 6 Grunt 9 | . 6 3 Best Kill Streak 11 | 5 2 11 Combat Bots Only 3 | . 2 3 Max Kills in Single Turn 3 | 2 1 3 Gunslinging . | . . . Exploded 3 | . . 3 Melee . | . . . Uniques/NPCs Destroyed . | . . . Combat | -11 -10 -10 -------- Run | Scr Mat Min Damage Taken 821 | . 440 381 Core 253 | . 127 126 Absorbed by Shields . | . . . Core Remaining (%) 100 | 100 . . Volleys Fired 111 | 8 62 41 Largest 2 | 2 2 2 Hottest 100 | 70 100 100 Shots Fired 191 | 16 107 68 Gun 98 | 16 82 . Cannon 67 | . 13 54 Launcher 13 | . . 13 Special 13 | . 12 1 Kinetic 121 | 8 59 54 Thermal 57 | 8 48 1 Explosive 13 | . . 13 Electromagnetic . | . . . Robot Hit Streak 12 | 4 8 12 Robot Miss Streak 5 | 4 3 5 Penetration Max . | . . . Secondary Targets . | . . . Shots Hit Robots 103 | 8 62 33 Core Hits 56 | 6 26 24 Critical Kills 1 | . 1 . Critical Parts Destroyed . | . . . Critical Strikes 3 | . 2 1 Burn 1 | . 1 . Destroy 1 | . 1 . Blast 1 | . . 1 Melee Attacks . | . . . Impact . | . . . Slashing . | . . . Piercing . | . . . Sneak Attacks . | . . . Combat Hostiles . | . . . Follow-up Attacks . | . . . Damage Inflicted 2090 | 136 791 1163 Guns 804 | 136 668 . Cannons 566 | . 123 443 Explosions 720 | . . 720 Melee . | . . . Ramming . | . . . Kinetic 964 | 71 450 443 Thermal 406 | 65 341 . Explosive 720 | . . 720 Electromagnetic . | . . . Impact . | . . . Slashing . | . . . Piercing . | . . . Highest Corruption . | . . . Average Corruption . | . . . Corruption Purged . | . . . Corruption Blocked . | . . . Overload Shots . | . . . Overflow Damage 14 | . . 14 Projectiles . | . . . Explosions 14 | . . 14 Melee . | . . . Knockbacks 11 | . 4 7 Impact . | . . . Kinetic 10 | . 3 7 Secondary 1 | . 1 . Self-Inflicted Damage . | . . . Shots . | . . . Rammed . | . . . Targets Rammed . | . . . Kicked . | . . . Crushed . | . . . Highest Temperature 224 | 72 224 105 Average Temperature 45 | 36 51 34 Received Heat Transfer 360 | . 219 141 Effects 1 | . 1 . Interference 1 | . 1 . Siege Activations . | . . . Robots Corrupted . | . . . Combat Hostiles . | . . . Parts Fried . | . . . Impact Corruptions . | . . . Robots Melted . | . . . Combat Hostiles . | . . . Parts Melted 2 | . 2 . Heat Transferred 1258 | 185 1073 . Parts Sabotaged . | . . . Parts Stolen . | . . . Parts Stripped . | . . . Power Chain Reactions . | . . . Missiles Intercepted . | . . . Alert | -11 -10 -10 ------- Run | Scr Mat Min Peak Influence 505 | 25 243 505 Initial 94 | . 16 94 Average 150 | 8 78 374 Maximum Alert Level 2 | . 1 2 Low Security (%) 73 | 100 97 4 Level 1 16 | . 2 56 Level 2 9 | . . 38 Level 3 . | . . . Level 4 . | . . . Level 5 . | . . . High Security . | . . . Max Security . | . . . Squads Dispatched 2 | . 2 . Investigation 2 | . 2 . Extermination . | . . . Reinforcement . | . . . Assault . | . . . Garrison . | . . . Intercept . | . . . Searches Triggered . | . . . Construction Impeded . | . . . Haulers Reinforced . | . . . Active Scanning Responses . | . . . Cargo Convoy Interrupts . | . . . Stealth | -11 -10 -10 --------- Run | Scr Mat Min Distress Signals . | . . . Communications Jammed . | . . . Distress Signals . | . . . Times Spotted 25 | . 15 10 Peak Tracking Total 3 | . 3 3 Tactical Retreats 3 | . 2 1 Traps | -11 -10 -10 ------- Run | Scr Mat Min Traps Triggered . | . . . Indirectly . | . . . Trap Hack Attempts . | . . . Triggered . | . . . Disarmed . | . . . Reprogrammed . | . . . Reused . | . . . Traps Extracted . | . . . Installed . | . . . Triggered . | . . . Machines | -11 -10 -10 ---------- Run | Scr Mat Min Machines Disabled 1 | . . 1 Max in Single Turn 1 | . . 1 Machines Sabotaged . | . . . Garrisons Compromised . | . . . Overloaded Fab Kills . | . . . Hacking | -11 -10 -10 --------- Run | Scr Mat Min Machines Accessed 8 | . 8 . Terminals 6 | . 6 . Fabricators . | . . . Repair Stations . | . . . Recycling Units 2 | . 2 . Scanalyzers . | . . . Garrison Access . | . . . Total Hacks 26 | . 26 . Successful 14 | . 14 . Failed 12 | . 12 . Catastrophic 2 | . 2 . Database Lockouts . | . . . Manual 18 | . 18 . Terminals 24 | . 24 . Fabricators . | . . . Repair Stations . | . . . Recycling Units 2 | . 2 . Scanalyzers . | . . . Garrison Access . | . . . Terminal Hacks 7 | . 7 . Robot Analysis 2 | . 2 . Prototype ID Bank 3 | . 3 . Terminal Index 1 | . 1 . Locate Traps 1 | . 1 . Fabricator Hacks . | . . . Repair Station Hacks . | . . . Recycling Unit Hacks . | . . . Scanalyzer . | . . . Garrison Access Hacks . | . . . Unauthorized Hacks 7 | . 7 . Terminals 5 | . 5 . Assimilate 2 | . 2 . Botnet 2 | . 2 . Operators 1 | . 1 . Fabricators . | . . . Repair Stations . | . . . Recycling Units 2 | . 2 . Tunnel 2 | . 2 . Scanalyzers . | . . . Garrison Access . | . . . Data Cores Recovered . | . . . Used . | . . . Hacking Detections 6 | . 6 . Full Trace Events 1 | . 1 . Feedback Events . | . . . Feedback Blocked . | . . . Robot Schematics Acquired . | . . . Robots Built . | . . . Authchips . | . . . Time . | . . . Total Robot Build Rating . | . . . Part Schematics Acquired . | . . . Parts Built . | . . . Authchips . | . . . Time . | . . . Total Part Build Rating . | . . . Parts Repaired . | . . . Time . | . . . Parts Recycled . | . . . Recycled Matter . | . . . Retrieved Matter . | . . . Retrieved Components . | . . . Parts Scanalyzed . | . . . Part Schematics Acquired . | . . . Parts Damaged . | . . . Bothacking | -11 -10 -10 ------------ Run | Scr Mat Min Used RIF Installer . | . . . Robots Hacked . | . . . Non-combat . | . . . Combat . | . . . Robot Hacks Applied . | . . . Relay Couplers Released . | . . . Fabnet Peak Effective % . | . . . Robots Rewired . | . . . Allies Hacked . | . . . Hacks Repelled . | . . . Allies | -11 -10 -10 -------- Run | Scr Mat Min Total Allies 1 | . 1 . Largest Group 1 | . 1 . Highest-Rated Group 10 | . 10 . Highest-Rated Ally 10 | . 10 . Total Orders 1 | . 1 . STAY 1 | . 1 . Ally Attacks . | . . . Total Damage . | . . . Kills . | . . . Allies Corrupted . | . . . Allies Melted . | . . . Intel | -11 -10 -10 ------- Run | Scr Mat Min Robot Analysis Total 2 | . 2 . Derelict Logs Recovered . | . . . Drone Launches . | . . . Drone Recoveries . | . . . Exploration | -11 -10 -10 ------------- Run | Scr Mat Min Turns Passed 1654 | 93 1138 423 Spaces Moved 959 | 61 658 240 Core 8 | 8 . . Treads . | . . . Legs . | . . . Wheels 951 | 53 658 240 Hover . | . . . Flight . | . . . Fastest Speed 50 | 50 90 90 Average Speed 97 | 77 97 103 Slowest Speed 115 | 90 105 115 Overloaded Moves . | . . . Propulsion Burnouts . | . . . Robots Hopped . | . . . Cave-ins Triggered . | . . . Exploration Rate (%) 46 | 4 94 42 Regions Visited 2 Branch Regions 1 Pre-discovered Areas 2 | . 2 . Known Exits Taken . | . . . Unknown Exits Taken 2 | 1 1 . Scrap Searched . | . . . Spaces Dug 11 | . 10 1 Terrain Destroyed 76 | . 12 64 Melee . | . . . Projectile 14 | . 12 2 AOE 62 | . . 62 Terrain Rammed . | . . . Walls Destroyed . | . . . Machines Disabled . | . . . Actions | -11 -10 -10 --------- Run | Scr Mat Min Total 1445 | 86 1018 341 Wait 324 | 2 276 46 Move 957 | 60 657 240 Hop . | . . . Pick Up 13 | 5 5 3 Fast Attach 10 | 7 1 2 Attach 1 | 1 . . Detach 1 | 1 . . Swap 24 | 2 15 7 Drop 4 | . 2 2 Fire 111 | 8 62 41 Melee . | . . . Ram . | . . . Kick . | . . . Crush . | . . . Escape Stasis . | . . . Rewire . | . . . Trap . | . . . Miscellaneous . | . . . Route ------- -11/Scrapyard -10/Materials (discovered 4 exits: [*Mat x3] / [*Min]) -10/Mines (discovered 2 exits: [*Mat x2]) History --------- Turn | Location | Event 4 | -11/Scrapyard | Discovered new exit (range 16) 94 | -11/Scrapyard | Entered Materials 288 | -10/Materials | Discovered new exit (range 13) 306 | -10/Materials | Build established: Mutant 409 | -10/Materials | Discovered new exit (range 15) 826 | -10/Materials | Discovered new exit (range 16) 977 | -10/Materials | Discovered new exit (range 14) 1202 | -10/Materials | Core integrity fell below 50% 1232 | -10/Materials | Entered Mines 1249 | -10/Mines | Discovered new exit (range 12) 1385 | -10/Mines | A weapon hastily lodged in a ceiling crevice suddenly fell to the ground 1564 | -10/Mines | Core integrity fell below 20% 1631 | -10/Mines | Discovered new exit (range 10) 1642 | -10/Mines | Met a Derelict who couldn't figure out how to use a Trap Extractor 1655 | -10/Mines | Destroyed by G-34 Mercenary with Small Laser Last Messages --------------- 01554_ Lgt. Nuclear Core destroyed. 01556_ G-34 Mercenary knocked back. 01565_ SHOP.Sys disabled. 01567_ Seismic Detector destroyed. 01579_ G-47 Trooper destroyed. 01625_ Acquired 25 matter. 01627_ Acquired 2 matter. 01631_ EXIT=FOUND 01632_ Acquired 1 matter. 01634_ Acquired 4 matter. 01638_ Acquired 7 matter. 01642_ VO-SBI(g): "So I found this thing but I have no idea how to use it. And who the hell trapped this place to begin with?!" 01642_ VO-SBI(g): "I give up! Here you try, I'm outta here before something nasty happens..." 01642_ Tosses Imp. Trap Extractor to the ground. 01642_ VO-SBI(g) triggered Explosive Trap. 01642_ An explosion rips through the floor. 01642_ Machine disabled. 01652_ VO-SBI(g) exits level. Map ----- +----------------------------------------------------+ | ???????????????????????????????????????????????? | | ???????????????????????????????????????????????? | | ???????????????????????????????????????????????? | | ???????????????????????????????????????????????? | | ???????????????????????????????????????????????? | | ???????????????????????????????????????????????? | | ???????????????????????????????????????????????? | | ???????????????????????????????????????????????? | | ???????????????????????????????????????????????? | | ???????????????????????????????????????????????? | | ???????????????????????????????????????????????? | | ???????????????????????????????????????????????? | | ???????????????????????????????????????????????? | | ???????????????????????????????????????????????? | | ???????????????????????????????????????????????? | | ???????????????????????????????????????????????? | | ???????????????????????????????????????????????? | | ???????????????????????????????????????????????? | | ???????????????????????????????????????????????? | | ??????#???????######???????????????????????????? | | ??????# ?????## """##??????????????????????????? | | ??????? ####?#"!!]!"#??????????????????????????? | | ???????? #?#"= !*"#####??????????????????????? | | ????????# #??# !/ ## ##?????????????????????? | | ???????## #### "" # ##????????????????????? | | ?????### ## @ #????????????????????? | | ????## #????????????????????? | | ????# g ## < ?????????????? | | ???# ###### ### r #????????????? | | ???## # #####?#######??? #####????????????? | | ????####### =#?????????????????????????????? | | ??????????# ### #?????????????????????????????? | | ??????????# #?# #?????????#? ?????????????????? | | ??????????# ###$ ?????????# #????????????????? | | ??????????# #####???????? ????????????????? | | ??????????## ##??????????? ????????????????? | | ??????????# #??????????? #???????????????? | | ??????????# #???????????? #??????????????? | | ?????????## #????????????? ###???????????? | | ????????## #?????????????# ####????????? | | ?????#### #??????????????# ##???????? | | ????## ! = #???????????????# #???????? | | ????# ! ##??????????????# """ #???????? | | ????# #??????????????# """ #???????? | | ????# ## #??????????????# """ ######### | | ????# | ### #??????????????# | | ????#*=! ### ##???###????###### ##### ### | | ????# ! # ###### ##???# #???# #?? | | ????#%# # ##??# #???# #?? | | ????# # # ####### ##?# ### ##???# ##? | +----------------------------------------------------+ Best States ------------- Heat Dissipation 25 Energy Generation 14 Energy Capacity 250 Matter Stores 300 Matter Capacity 300 Sight Range 16 Terrain Scan Density 10 Evasion (%) 44 Item Schematics ----------------- None Robot Schematics ------------------ None Fabricated ------------ Nothing Alien Tech Used ----------------- None Achievements -------------- None Challenges ------------ None Game ------ Seed MiningBoreMembrane Manual? 0 Play Time 00:15:56 Cumulative 552.7 hours Start 2022.06.19 @ 23:50:37 End 2022.06.20 @ 00:06:28 Sessions 1 Manual Loads 0 Difficulty Rogue Special Mode None Game No. 184 Rogue 180 Adventurer 4 Explorer 0 Win Type - Total 13 Types 6/2/3/0/0/0/1/1/0 Lore% 84 Gallery% 86 Achievement% 74 Wizard Run 0 Options --------- ASCII 1 Keyboard 0 Movement Arrows Keybinds 0 Fullscreen 1 Font 18/SmallcapsGlow Map View 76x50 Tactical HUD 1 Map Filters NONE Filters NONE Steam 1 RUN: c64143d5-89ae-47ea-bcef-e4375e3b95e4